[Event "2026 Biel Blitz Open"]
[Site "Biel, CH"]
[Date "2026.07.19"]
[Round "12"]
[White "Osmani, Xhevdet"]
[Black "Maruntis, Patrik-Robert"]
[Result "0-1"]
[Board "21"]
[TimeControl "180+2"]
[WhiteFideId "22104569"]
[BlackFideId "1259997"]
[WhiteElo "1959"]
[BlackElo "2167"]
[WhiteClock "0:03:02"]
[BlackClock "0:00:09"]
[Variant "Standard"]
[EndDate "2026.07.19"]
[EndTime "16:05:33"]

1. d4 {[%clk 0:03:03]}  Nf6 {[%clk 0:03:03]} 2. Bf4 {[%clk 0:03:04]}  g6 {[%clk 0:03:04]} 3. e3 {[%clk 0:03:05]}  Bg7 {[%clk 0:03:05]}
4. Nf3 {[%clk 0:03:06]}  O-O {[%clk 0:03:05]} 5. Be2 {[%clk 0:03:06]}  b6 {[%clk 0:03:06]} 6. h3 {[%clk 0:03:07]}  Bb7 {[%clk 0:03:08]}
7. Nbd2 {[%clk 0:03:07]}  d6 {[%clk 0:03:08]} 8. O-O {[%clk 0:03:07]}  Ne4 {[%clk 0:03:09]} 9. c3 {[%clk 0:03:04]}  Nd7 {[%clk 0:03:10]}
10. Rc1 {[%clk 0:02:55]}  c5 {[%clk 0:03:03]} 11. Qc2 {[%clk 0:03:01]}  Ndf6 {[%clk 0:03:02]} 12. Rfd1 {[%clk 0:02:57]}  Rc8 {[%clk 0:03:00]}
13. dxc5 {[%clk 0:02:56]}  bxc5 {[%clk 0:02:55]} 14. Bd3 {[%clk 0:02:49]}  Nxd2 {[%clk 0:02:52]} 15. Nxd2 {[%clk 0:02:49]}  Ba8 {[%clk 0:02:48]}
16. Be2 {[%clk 0:02:50]}  Qb6 {[%clk 0:02:47]} 17. Bg3 {[%clk 0:02:45]}  Qc6 {[%clk 0:02:12]} 18. Bf3 {[%clk 0:02:43]}  Qa6 {[%clk 0:02:13]}
19. Bxa8 {[%clk 0:02:41]}  Rxa8 {[%clk 0:02:14]} 20. a3 {[%clk 0:02:43]}  c4 {[%clk 0:02:08]} 21. Nf3 {[%clk 0:02:42]}  Rfc8 {[%clk 0:02:05]}
22. Nd4 {[%clk 0:02:41]}  Rab8 {[%clk 0:01:59]} 23. Rb1 {[%clk 0:02:38]}  e5 {[%clk 0:01:54]} 24. Nf3 {[%clk 0:02:33]}  Qc6 {[%clk 0:01:53]}
25. Nd2 {[%clk 0:02:28]}  Nd5 {[%clk 0:01:16]} 26. Re1 {[%clk 0:02:13]}  Bh6 {[%clk 0:00:43]} 27. Ne4 {[%clk 0:02:02]}  f5 {[%clk 0:00:41]}
28. Nd2 {[%clk 0:01:59]}  Nb6 {[%clk 0:00:38]} 29. f3 {[%clk 0:01:45]}  Qa4 {[%clk 0:00:36]} 30. Qc1 {[%clk 0:01:41]}  Nd7 {[%clk 0:00:30]}
31. Bf2 {[%clk 0:01:42]}  Nc5 {[%clk 0:00:32]} 32. Nf1 {[%clk 0:01:39]}  Nd3 {[%clk 0:00:32]} 33. Qd2 {[%clk 0:01:36]}  Nxe1 {[%clk 0:00:17]}
34. Bxe1 {[%clk 0:01:34]}  Qc6 {[%clk 0:00:18]} 35. Bf2 {[%clk 0:01:34]}  Rb5 {[%clk 0:00:15]} 36. Qe2 {[%clk 0:01:26]}  Rd5 {[%clk 0:00:12]}
37. g3 {[%clk 0:01:20]}  Rd3 {[%clk 0:00:12]} 38. g4 {[%clk 0:00:56]}  e4 {[%clk 0:00:07]} 39. f4 {[%clk 0:00:55]}  Kh8 {[%clk 0:00:07]}
40. gxf5 {[%clk 0:00:53]}  gxf5 {[%clk 0:00:08]} 41. Qh5 {[%clk 0:00:54]}  Rg8+ {[%clk 0:00:08]} 42. Kh1 {[%clk 0:00:46]}  d5 {[%clk 0:00:08]}
43. Qxf5 {[%clk 0:00:43]}  Qg6 {[%clk 0:00:09]} 44. Ng3 {[%clk 0:00:31]}  Rd2 {[%clk 0:00:10]} 45. Be1 {[%clk 0:00:09]}  Qxf5 {[%clk 0:00:09]}
46. Nxf5 {[%clk 0:00:10]}  Rdg2 {[%clk 0:00:11]} 47. Bh4 {[%clk 0:00:03]}  R2g6 {[%clk 0:00:09]} 48. Ne7 {[%clk 0:03:02]} 0-1

[Event "2026 Biel Blitz Open"]
[Site "Biel, CH"]
[Date "2026.07.19"]
[Round "12"]
[White "Hakimifard, Ghazal"]
[Black "Havolli, Daut"]
[Result "1-0"]
[Board "22"]
[TimeControl "180+2"]
[WhiteFideId "12506540"]
[BlackFideId "1315200"]
[WhiteElo "2130"]
[BlackElo "1950"]
[WhiteTitle "WGM"]
[WhiteClock "0:00:31"]
[BlackClock "0:00:03"]
[Variant "Standard"]
[EndDate "2026.07.19"]
[EndTime "15:57:50"]

1. e4 {[%clk 0:03:03]}  c6 {[%clk 0:03:04]} 2. d4 {[%clk 0:03:04]}  d5 {[%clk 0:03:05]} 3. Nd2 {[%clk 0:03:05]}  e6 {[%clk 0:03:06]}
4. Ngf3 {[%clk 0:03:04]}  f5 {[%clk 0:03:06]} 5. exf5 {[%clk 0:02:58]}  exf5 {[%clk 0:03:07]} 6. Bd3 {[%clk 0:02:58]}  Nf6 {[%clk 0:03:09]}
7. O-O {[%clk 0:02:56]}  Be7 {[%clk 0:03:10]} 8. Ne5 {[%clk 0:02:55]}  O-O {[%clk 0:03:10]} 9. Ndf3 {[%clk 0:02:53]}  Ne4 {[%clk 0:03:10]}
10. c4 {[%clk 0:02:46]}  Nd7 {[%clk 0:03:02]} 11. cxd5 {[%clk 0:02:33]}  cxd5 {[%clk 0:02:56]} 12. Qb3 {[%clk 0:02:33]}  Nxe5 {[%clk 0:02:53]}
13. Nxe5 {[%clk 0:02:32]}  Kh8 {[%clk 0:02:11]} 14. f3 {[%clk 0:02:24]}  Nf6 {[%clk 0:02:12]} 15. Bg5 {[%clk 0:02:10]}  b6 {[%clk 0:01:49]}
16. Nc6 {[%clk 0:01:57]}  Qd7 {[%clk 0:01:51]} 17. Bb5 {[%clk 0:01:26]}  a6 {[%clk 0:01:13]} 18. Nxe7 {[%clk 0:01:19]}  Qxe7 {[%clk 0:01:14]}
19. Rfe1 {[%clk 0:01:19]}  Qd6 {[%clk 0:01:12]} 20. Bd3 {[%clk 0:01:15]}  Bd7 {[%clk 0:01:07]} 21. Re5 {[%clk 0:01:13]}  h6 {[%clk 0:00:48]}
22. Bh4 {[%clk 0:01:11]}  Rae8 {[%clk 0:00:23]} 23. Rae1 {[%clk 0:01:11]}  Qc6 {[%clk 0:00:18]} 24. Qd1 {[%clk 0:00:35]}  b5 {[%clk 0:00:14]}
25. Qe2 {[%clk 0:00:35]}  Rxe5 {[%clk 0:00:11]} 26. dxe5 {[%clk 0:00:35]}  Nh5 {[%clk 0:00:07]} 27. Qe3 {[%clk 0:00:31]}  Be6 {[%clk 0:00:03]}
28. Rc1 {[%clk 0:00:31]}  Qd7 {[%clk 0:00:00]} 29. Qd4 {[%clk 0:00:31]}  f4 {[%clk 0:00:00]} 1-0

[Event "2026 Biel Blitz Open"]
[Site "Biel, CH"]
[Date "2026.07.19"]
[Round "12"]
[White "Harish, Neeraj"]
[Black "Filipovic, Branko"]
[Result "1-0"]
[Board "23"]
[TimeControl "180+2"]
[WhiteFideId "30958130"]
[BlackFideId "14507951"]
[WhiteElo "1920"]
[BlackElo "2109"]
[WhiteTitle "CM"]
[BlackTitle "IM"]
[WhiteClock "0:01:23"]
[BlackClock "0:00:21"]
[Variant "Standard"]
[EndDate "2026.07.19"]
[EndTime "15:56:29"]

1. e4 {[%clk 0:03:03]}  Nf6 {[%clk 0:03:02]} 2. e5 {[%clk 0:03:02]}  Nd5 {[%clk 0:03:04]} 3. c4 {[%clk 0:03:03]}  Nb6 {[%clk 0:03:05]}
4. d4 {[%clk 0:03:04]}  d6 {[%clk 0:03:06]} 5. f4 {[%clk 0:03:03]}  dxe5 {[%clk 0:03:04]} 6. fxe5 {[%clk 0:03:04]}  Bf5 {[%clk 0:03:05]}
7. Nc3 {[%clk 0:03:01]}  e6 {[%clk 0:03:06]} 8. Be3 {[%clk 0:03:01]}  Bb4 {[%clk 0:03:05]} 9. a3 {[%clk 0:02:58]}  Bxc3+ {[%clk 0:02:58]}
10. bxc3 {[%clk 0:02:59]}  c5 {[%clk 0:02:55]} 11. Nf3 {[%clk 0:02:58]}  O-O {[%clk 0:02:38]} 12. Be2 {[%clk 0:02:58]}  Nc6 {[%clk 0:02:36]}
13. O-O {[%clk 0:02:56]}  h6 {[%clk 0:02:34]} 14. Qd2 {[%clk 0:02:51]}  Na5 {[%clk 0:02:34]} 15. Qa2 {[%clk 0:02:38]}  Rc8 {[%clk 0:02:18]}
16. Rad1 {[%clk 0:02:17]}  Qe7 {[%clk 0:01:33]} 17. d5 {[%clk 0:02:14]}  Nd7 {[%clk 0:01:24]} 18. d6 {[%clk 0:02:09]}  Qd8 {[%clk 0:01:24]}
19. Qd2 {[%clk 0:02:02]}  Nc6 {[%clk 0:01:08]} 20. Bf4 {[%clk 0:01:57]}  Bh7 {[%clk 0:01:00]} 21. Qe3 {[%clk 0:01:53]}  b6 {[%clk 0:00:55]}
22. Nd2 {[%clk 0:01:39]}  Re8 {[%clk 0:00:41]} 23. Rf3 {[%clk 0:01:36]}  f5 {[%clk 0:00:36]} 24. Rg3 {[%clk 0:01:34]}  Kh8 {[%clk 0:00:37]}
25. Bh5 {[%clk 0:01:29]}  Rg8 {[%clk 0:00:36]} 26. Bf7 {[%clk 0:01:27]}  Nf8 {[%clk 0:00:27]} 27. Bxg8 {[%clk 0:01:25]}  Bxg8 {[%clk 0:00:28]}
28. Bxh6 {[%clk 0:01:23]}  g6 {[%clk 0:00:20]} 29. Bg5 {[%clk 0:01:22]}  Qd7 {[%clk 0:00:21]} 30. Bf6+ {[%clk 0:01:23]} 1-0

[Event "2026 Biel Blitz Open"]
[Site "Biel, CH"]
[Date "2026.07.19"]
[Round "12"]
[White "Stefan, Romulus-Cristian"]
[Black "Garcia, Miguel"]
[Result "1-0"]
[Board "25"]
[TimeControl "180+2"]
[WhiteFideId "1232835"]
[BlackFideId "1317431"]
[WhiteElo "2048"]
[BlackElo "1938"]
[WhiteTitle "CM"]
[WhiteClock "0:01:50"]
[BlackClock "0:00:43"]
[Variant "Standard"]
[EndDate "2026.07.19"]
[EndTime "16:05:21"]

1. d4 {[%clk 0:03:03]}  Nf6 {[%clk 0:03:03]} 2. Nf3 {[%clk 0:03:04]}  g6 {[%clk 0:03:02]} 3. Bg5 {[%clk 0:03:03]}  Bg7 {[%clk 0:03:03]}
4. Nbd2 {[%clk 0:03:03]}  O-O {[%clk 0:03:01]} 5. c3 {[%clk 0:03:04]}  h6 {[%clk 0:03:02]} 6. Bh4 {[%clk 0:03:05]}  d6 {[%clk 0:03:02]}
7. e4 {[%clk 0:03:06]}  c5 {[%clk 0:03:02]} 8. dxc5 {[%clk 0:03:06]}  dxc5 {[%clk 0:03:03]} 9. Be2 {[%clk 0:03:07]}  Nc6 {[%clk 0:03:03]}
10. O-O {[%clk 0:03:07]}  b6 {[%clk 0:02:43]} 11. Qc2 {[%clk 0:03:07]}  Bb7 {[%clk 0:02:43]} 12. Nc4 {[%clk 0:03:01]}  g5 {[%clk 0:02:37]}
13. Bg3 {[%clk 0:03:02]}  Nh5 {[%clk 0:02:32]} 14. Rad1 {[%clk 0:02:49]}  Qc8 {[%clk 0:02:26]} 15. Nfd2 {[%clk 0:02:47]}  Nxg3 {[%clk 0:02:22]}
16. hxg3 {[%clk 0:02:47]}  Rd8 {[%clk 0:02:11]} 17. Ne3 {[%clk 0:02:45]}  e6 {[%clk 0:02:01]} 18. Ndc4 {[%clk 0:02:36]}  Qc7 {[%clk 0:01:58]}
19. f4 {[%clk 0:02:30]}  a6 {[%clk 0:01:34]} 20. e5 {[%clk 0:02:25]}  b5 {[%clk 0:01:30]} 21. Nd6 {[%clk 0:02:26]}  Ne7 {[%clk 0:01:16]}
22. Bh5 {[%clk 0:02:21]}  Rf8 {[%clk 0:01:06]} 23. Nxb7 {[%clk 0:02:08]}  Qxb7 {[%clk 0:01:06]} 24. Bf3 {[%clk 0:02:09]}  Nc6 {[%clk 0:01:07]}
25. Ng4 {[%clk 0:02:04]}  Rfd8 {[%clk 0:01:06]} 26. Qe4 {[%clk 0:01:49]}  Rxd1 {[%clk 0:01:01]} 27. Rxd1 {[%clk 0:01:50]}  Rc8 {[%clk 0:00:51]}
28. Rd6 {[%clk 0:01:51]}  gxf4 {[%clk 0:00:43]} 29. gxf4 {[%clk 0:01:50]} 1-0

[Event "2026 Biel Blitz Open"]
[Site "Biel, CH"]
[Date "2026.07.19"]
[Round "12"]
[White "Materia, Matteo"]
[Black "Schweizer, Samuel"]
[Result "0-1"]
[Board "26"]
[TimeControl "180+2"]
[WhiteFideId "45150575"]
[BlackFideId "1325353"]
[WhiteElo "1881"]
[BlackElo "2006"]
[WhiteClock "0:01:33"]
[BlackClock "0:02:22"]
[Variant "Standard"]
[EndDate "2026.07.19"]
[EndTime "15:55:06"]

1. Nf3 {[%clk 0:03:02]}  g6 {[%clk 0:03:02]} 2. g3 {[%clk 0:03:02]}  Bg7 {[%clk 0:03:03]} 3. Bg2 {[%clk 0:03:04]}  d6 {[%clk 0:03:04]}
4. d4 {[%clk 0:03:03]}  e6 {[%clk 0:03:05]} 5. O-O {[%clk 0:03:02]}  h6 {[%clk 0:03:05]} 6. e4 {[%clk 0:02:52]}  Ne7 {[%clk 0:03:06]}
7. c3 {[%clk 0:02:51]}  a6 {[%clk 0:03:06]} 8. Ne1 {[%clk 0:02:41]}  Nbc6 {[%clk 0:03:00]} 9. f4 {[%clk 0:02:36]}  d5 {[%clk 0:02:58]}
10. e5 {[%clk 0:02:37]}  h5 {[%clk 0:02:57]} 11. Nc2 {[%clk 0:02:33]}  Nf5 {[%clk 0:02:58]} 12. Ne3 {[%clk 0:02:34]}  Nce7 {[%clk 0:02:58]}
13. Na3 {[%clk 0:02:32]}  Nxe3 {[%clk 0:02:55]} 14. Bxe3 {[%clk 0:02:32]}  Nf5 {[%clk 0:02:56]} 15. Bf2 {[%clk 0:02:33]}  Bf8 {[%clk 0:02:57]}
16. Nc2 {[%clk 0:02:34]}  Be7 {[%clk 0:02:57]} 17. Ne3 {[%clk 0:02:35]}  Nxe3 {[%clk 0:02:56]} 18. Bxe3 {[%clk 0:02:36]}  Bd7 {[%clk 0:02:56]}
19. Rf2 {[%clk 0:02:32]}  b6 {[%clk 0:02:56]} 20. c4 {[%clk 0:02:27]}  dxc4 {[%clk 0:02:52]} 21. Bxa8 {[%clk 0:02:25]}  Qxa8 {[%clk 0:02:52]}
22. Rc1 {[%clk 0:02:17]}  b5 {[%clk 0:02:49]} 23. b3 {[%clk 0:02:15]}  Qd5 {[%clk 0:02:35]} 24. bxc4 {[%clk 0:02:16]}  bxc4 {[%clk 0:02:36]}
25. Qc2 {[%clk 0:02:14]}  Bc6 {[%clk 0:02:34]} 26. Kf1 {[%clk 0:02:14]}  O-O {[%clk 0:02:31]} 27. Qxc4 {[%clk 0:02:12]}  Bb5 {[%clk 0:02:32]}
28. Qxb5 {[%clk 0:02:01]}  axb5 {[%clk 0:02:32]} 29. Rxc7 {[%clk 0:02:01]}  Bb4 {[%clk 0:02:26]} 30. Rfc2 {[%clk 0:01:56]}  Rd8 {[%clk 0:02:22]}
31. Ra7 {[%clk 0:01:36]}  Qf3+ {[%clk 0:02:21]} 32. Bf2 {[%clk 0:01:33]}  Qd1+ {[%clk 0:02:22]} 0-1

[Event "2026 Biel Blitz Open"]
[Site "Biel, CH"]
[Date "2026.07.19"]
[Round "12"]
[White "Gireada, Daniel"]
[Black "Trubini, Timon"]
[Result "1-0"]
[Board "27"]
[TimeControl "180+2"]
[WhiteFideId "1206451"]
[BlackFideId "1347799"]
[WhiteElo "2148"]
[BlackElo "1788"]
[WhiteClock "0:00:28"]
[BlackClock "0:00:05"]
[Variant "Standard"]
[EndDate "2026.07.19"]
[EndTime "16:04:01"]

1. d4 {[%clk 0:03:02]}  d5 {[%clk 0:03:03]} 2. c4 {[%clk 0:03:03]}  e6 {[%clk 0:03:04]} 3. Nf3 {[%clk 0:03:02]}  c6 {[%clk 0:03:05]}
4. Nc3 {[%clk 0:03:02]}  dxc4 {[%clk 0:03:06]} 5. e4 {[%clk 0:02:58]}  b5 {[%clk 0:03:07]} 6. a4 {[%clk 0:02:59]}  Bb4 {[%clk 0:03:04]}
7. Bd2 {[%clk 0:02:42]}  a5 {[%clk 0:03:05]} 8. axb5 {[%clk 0:02:26]}  Bxc3 {[%clk 0:03:06]} 9. Bxc3 {[%clk 0:02:27]}  cxb5 {[%clk 0:03:07]}
10. b3 {[%clk 0:02:28]}  b4 {[%clk 0:02:59]} 11. Bxb4 {[%clk 0:02:28]}  Bb7 {[%clk 0:02:47]} 12. Bc3 {[%clk 0:02:11]}  Bxe4 {[%clk 0:02:30]}
13. Bxc4 {[%clk 0:02:08]}  Nf6 {[%clk 0:02:28]} 14. O-O {[%clk 0:02:03]}  O-O {[%clk 0:02:28]} 15. Re1 {[%clk 0:02:02]}  Bd5 {[%clk 0:02:23]}
16. Ne5 {[%clk 0:01:59]}  Ne4 {[%clk 0:02:06]} 17. Bb2 {[%clk 0:01:53]}  Nd6 {[%clk 0:02:02]} 18. Qe2 {[%clk 0:01:49]}  Nd7 {[%clk 0:01:48]}
19. Ba3 {[%clk 0:01:49]}  Qc7 {[%clk 0:01:32]} 20. Rac1 {[%clk 0:01:47]}  Bxc4 {[%clk 0:00:57]} 21. bxc4 {[%clk 0:01:44]}  Rfd8 {[%clk 0:00:49]}
22. c5 {[%clk 0:01:35]}  Nf5 {[%clk 0:00:50]} 23. Qe4 {[%clk 0:01:30]}  Nf6 {[%clk 0:00:47]} 24. Qb1 {[%clk 0:01:07]}  Nxd4 {[%clk 0:00:40]}
25. c6 {[%clk 0:01:03]}  Rab8 {[%clk 0:00:34]} 26. Qa2 {[%clk 0:01:03]}  Nd5 {[%clk 0:00:25]} 27. Bc5 {[%clk 0:00:50]}  Nb3 {[%clk 0:00:23]}
28. Ba3 {[%clk 0:00:43]}  Nxc1 {[%clk 0:00:23]} 29. Bxc1 {[%clk 0:00:40]}  Nb4 {[%clk 0:00:23]} 30. Qc4 {[%clk 0:00:38]}  a4 {[%clk 0:00:15]}
31. h3 {[%clk 0:00:36]}  Nd5 {[%clk 0:00:14]} 32. Ba3 {[%clk 0:00:34]}  Rdc8 {[%clk 0:00:09]} 33. Qg4 {[%clk 0:00:33]}  f6 {[%clk 0:00:06]}
34. Nc4 {[%clk 0:00:29]}  Qxc6 {[%clk 0:00:06]} 35. Nd6 {[%clk 0:00:29]}  Rd8 {[%clk 0:00:05]} 36. Qxe6+ {[%clk 0:00:29]}  Kh8 {[%clk 0:00:06]}
37. Nf7+ {[%clk 0:00:29]}  Kg8 {[%clk 0:00:05]} 38. Nh6+ {[%clk 0:00:28]} 1-0

[Event "2026 Biel Blitz Open"]
[Site "Biel, CH"]
[Date "2026.07.19"]
[Round "12"]
[White "Gluckman, David"]
[Black "Floure, Alexan"]
[Result "0-1"]
[Board "28"]
[TimeControl "180+2"]
[WhiteFideId "14300010"]
[BlackFideId "1346610"]
[WhiteElo "2240"]
[BlackElo "1960"]
[WhiteTitle "IM"]
[WhiteClock "0:00:15"]
[BlackClock "0:00:10"]
[Variant "Standard"]
[EndDate "2026.07.19"]
[EndTime "16:04:07"]

1. d4 {[%clk 0:03:03]}  d5 {[%clk 0:03:03]} 2. Nf3 {[%clk 0:03:04]}  Nf6 {[%clk 0:02:59]} 3. g3 {[%clk 0:03:04]}  c6 {[%clk 0:02:55]}
4. Bg2 {[%clk 0:03:05]}  g6 {[%clk 0:02:55]} 5. c4 {[%clk 0:03:01]}  Bg7 {[%clk 0:02:55]} 6. cxd5 {[%clk 0:02:58]}  cxd5 {[%clk 0:02:55]}
7. O-O {[%clk 0:02:57]}  O-O {[%clk 0:02:55]} 8. Nc3 {[%clk 0:02:58]}  Nc6 {[%clk 0:02:53]} 9. Ne5 {[%clk 0:02:59]}  Qb6 {[%clk 0:02:36]}
10. Nxc6 {[%clk 0:02:27]}  bxc6 {[%clk 0:02:36]} 11. Na4 {[%clk 0:02:27]}  Qb5 {[%clk 0:02:03]} 12. b3 {[%clk 0:02:26]}  Bf5 {[%clk 0:01:50]}
13. Ba3 {[%clk 0:02:21]}  Rfe8 {[%clk 0:01:47]} 14. Rc1 {[%clk 0:02:16]}  Ne4 {[%clk 0:01:42]} 15. e3 {[%clk 0:02:07]}  Rac8 {[%clk 0:01:39]}
16. f3 {[%clk 0:01:47]}  Nf6 {[%clk 0:01:29]} 17. Qd2 {[%clk 0:01:42]}  h5 {[%clk 0:01:06]} 18. Rfd1 {[%clk 0:01:37]}  Bh6 {[%clk 0:01:04]}
19. f4 {[%clk 0:01:21]}  Ne4 {[%clk 0:01:04]} 20. Bxe4 {[%clk 0:01:22]}  Bxe4 {[%clk 0:01:05]} 21. Nc5 {[%clk 0:01:15]}  Bf5 {[%clk 0:01:00]}
22. Re1 {[%clk 0:01:04]}  Bf8 {[%clk 0:00:54]} 23. Qb4 {[%clk 0:00:52]}  e6 {[%clk 0:00:34]} 24. Qxb5 {[%clk 0:00:48]}  cxb5 {[%clk 0:00:35]}
25. Bb4 {[%clk 0:00:41]}  Bxc5 {[%clk 0:00:31]} 26. Bxc5 {[%clk 0:00:41]}  a6 {[%clk 0:00:29]} 27. Rc3 {[%clk 0:00:39]}  Rc6 {[%clk 0:00:28]}
28. Rec1 {[%clk 0:00:40]}  Rec8 {[%clk 0:00:30]} 29. Kf2 {[%clk 0:00:39]}  f6 {[%clk 0:00:25]} 30. Ke2 {[%clk 0:00:37]}  Kf7 {[%clk 0:00:25]}
31. Kd2 {[%clk 0:00:38]}  R8c7 {[%clk 0:00:23]} 32. b4 {[%clk 0:00:28]}  Be4 {[%clk 0:00:23]} 33. Ra1 {[%clk 0:00:29]}  g5 {[%clk 0:00:15]}
34. a4 {[%clk 0:00:29]}  Rb7 {[%clk 0:00:14]} 35. axb5 {[%clk 0:00:26]}  axb5 {[%clk 0:00:14]} 36. Rca3 {[%clk 0:00:26]}  Rcc7 {[%clk 0:00:13]}
37. Ra8 {[%clk 0:00:26]}  Kg6 {[%clk 0:00:08]} 38. h4 {[%clk 0:00:14]}  gxh4 {[%clk 0:00:07]} 39. gxh4 {[%clk 0:00:15]}  Kf5 {[%clk 0:00:08]}
40. Rh8 {[%clk 0:00:12]}  Bf3 {[%clk 0:00:09]} 41. Rg1 {[%clk 0:00:11]}  Bg4 {[%clk 0:00:08]} 42. Rf8 {[%clk 0:00:08]}  Rf7 {[%clk 0:00:07]}
43. Rxf7 {[%clk 0:00:08]}  Rxf7 {[%clk 0:00:09]} 44. Ra1 {[%clk 0:00:09]}  Rb7 {[%clk 0:00:09]} 45. Ra8 {[%clk 0:00:09]}  Ke4 {[%clk 0:00:10]}
46. Ra7 {[%clk 0:00:07]}  Rxa7 {[%clk 0:00:10]} 47. Bxa7 {[%clk 0:00:08]}  Kf3 {[%clk 0:00:10]} 48. Bc5 {[%clk 0:00:09]}  Kg3 {[%clk 0:00:11]}
49. Be7 {[%clk 0:00:10]}  Kxh4 {[%clk 0:00:11]} 50. Bxf6+ {[%clk 0:00:11]}  Kg3 {[%clk 0:00:12]} 51. Ke1 {[%clk 0:00:10]}  Bh3 {[%clk 0:00:11]}
52. f5 {[%clk 0:00:08]}  exf5 {[%clk 0:00:09]} 53. Be5+ {[%clk 0:00:09]}  Kg2 {[%clk 0:00:08]} 54. Bf4 {[%clk 0:00:10]}  h4 {[%clk 0:00:08]}
55. Ke2 {[%clk 0:00:11]}  Bg4+ {[%clk 0:00:09]} 56. Ke1 {[%clk 0:00:12]}  h3 {[%clk 0:00:10]} 57. Be5 {[%clk 0:00:10]}  h2 {[%clk 0:00:12]}
58. Bxh2 {[%clk 0:00:10]}  Kxh2 {[%clk 0:00:13]} 59. Kf2 {[%clk 0:00:12]}  Kh3 {[%clk 0:00:13]} 60. Kg1 {[%clk 0:00:10]}  Kg3 {[%clk 0:00:15]} 0-1

[Event "2026 Biel Blitz Open"]
[Site "Biel, CH"]
[Date "2026.07.19"]
[Round "12"]
[White "Ragios, Konstantinos"]
[Black "Rohrer, Christophe"]
[Result "0-1"]
[Board "29"]
[TimeControl "180+2"]
[WhiteFideId "4210484"]
[BlackFideId "1326546"]
[WhiteElo "1957"]
[BlackElo "2216"]
[BlackTitle "FM"]
[WhiteClock "0:00:09"]
[BlackClock "0:00:43"]
[Variant "Standard"]
[EndDate "2026.07.19"]
[EndTime "16:04:29"]

1. e4 {[%clk 0:03:03]}  e5 {[%clk 0:03:04]} 2. Nf3 {[%clk 0:03:04]}  Nc6 {[%clk 0:03:05]} 3. Bb5 {[%clk 0:03:05]}  a6 {[%clk 0:03:06]}
4. Ba4 {[%clk 0:03:06]}  d6 {[%clk 0:03:07]} 5. O-O {[%clk 0:03:03]}  Bg4 {[%clk 0:03:08]} 6. c3 {[%clk 0:02:59]}  Qf6 {[%clk 0:03:08]}
7. d3 {[%clk 0:02:54]}  Nge7 {[%clk 0:03:00]} 8. Be3 {[%clk 0:02:45]}  Bxf3 {[%clk 0:02:20]} 9. Qxf3 {[%clk 0:02:45]}  Qxf3 {[%clk 0:02:21]}
10. gxf3 {[%clk 0:02:45]}  O-O-O {[%clk 0:02:11]} 11. Nd2 {[%clk 0:02:29]}  d5 {[%clk 0:02:05]} 12. Bb3 {[%clk 0:01:56]}  d4 {[%clk 0:01:20]}
13. cxd4 {[%clk 0:01:48]}  exd4 {[%clk 0:01:21]} 14. Bf4 {[%clk 0:01:45]}  Ng6 {[%clk 0:01:21]} 15. Bg3 {[%clk 0:01:44]}  f6 {[%clk 0:01:15]}
16. Rac1 {[%clk 0:01:40]}  h5 {[%clk 0:01:13]} 17. h3 {[%clk 0:01:25]}  h4 {[%clk 0:01:07]} 18. Bh2 {[%clk 0:01:17]}  Bd6 {[%clk 0:01:07]}
19. Rfd1 {[%clk 0:00:20]}  Bxh2+ {[%clk 0:01:05]} 20. Kxh2 {[%clk 0:00:21]}  Nf4 {[%clk 0:01:06]} 21. Nc4 {[%clk 0:00:19]}  Rh5 {[%clk 0:00:56]}
22. Bc2 {[%clk 0:00:13]}  b5 {[%clk 0:00:47]} 23. Nd2 {[%clk 0:00:09]}  Ne5 {[%clk 0:00:48]} 24. Rg1 {[%clk 0:00:08]}  Ne2 {[%clk 0:00:47]}
25. Rce1 {[%clk 0:00:07]}  Nxg1 {[%clk 0:00:47]} 26. Rxg1 {[%clk 0:00:08]}  Rg5 {[%clk 0:00:46]} 27. Rc1 {[%clk 0:00:09]}  Ng6 {[%clk 0:00:45]}
28. Bb3 {[%clk 0:00:09]}  Nf4 {[%clk 0:00:44]} 29. Bc2 {[%clk 0:00:08]}  Rg2+ {[%clk 0:00:43]} 30. Kh1 {[%clk 0:00:09]}  Rxf2 {[%clk 0:00:43]} 0-1

[Event "2026 Biel Blitz Open"]
[Site "Biel, CH"]
[Date "2026.07.19"]
[Round "12"]
[White "Jud, Marc"]
[Black "Matsumura, Cocoro"]
[Result "0-1"]
[Board "30"]
[TimeControl "180+2"]
[WhiteFideId "1309099"]
[BlackFideId "36087114"]
[WhiteElo "1946"]
[BlackElo "2131"]
[BlackTitle "CM"]
[WhiteClock "0:00:16"]
[BlackClock "0:00:43"]
[Variant "Standard"]
[EndDate "2026.07.19"]
[EndTime "15:57:58"]

1. d4 {[%clk 0:03:04]}  d5 {[%clk 0:03:04]} 2. Nf3 {[%clk 0:03:04]}  Nf6 {[%clk 0:03:05]} 3. e3 {[%clk 0:03:06]}  c5 {[%clk 0:03:06]}
4. b3 {[%clk 0:03:02]}  Nc6 {[%clk 0:03:07]} 5. Bb2 {[%clk 0:03:03]}  cxd4 {[%clk 0:03:04]} 6. exd4 {[%clk 0:03:04]}  Bf5 {[%clk 0:03:01]}
7. Bd3 {[%clk 0:03:05]}  Bxd3 {[%clk 0:02:59]} 8. Qxd3 {[%clk 0:03:06]}  e6 {[%clk 0:03:00]} 9. O-O {[%clk 0:03:06]}  Bd6 {[%clk 0:03:01]}
10. h3 {[%clk 0:03:06]}  O-O {[%clk 0:03:01]} 11. Nbd2 {[%clk 0:03:07]}  Rc8 {[%clk 0:03:02]} 12. Ne5 {[%clk 0:03:00]}  Nb4 {[%clk 0:02:49]}
13. Qb5 {[%clk 0:01:51]}  Rxc2 {[%clk 0:02:38]} 14. Ba3 {[%clk 0:01:46]}  Qb6 {[%clk 0:02:04]} 15. Qxb6 {[%clk 0:01:36]}  axb6 {[%clk 0:02:05]}
16. Ndf3 {[%clk 0:01:37]}  Ra8 {[%clk 0:02:00]} 17. Bc1 {[%clk 0:01:08]}  Raxa2 {[%clk 0:01:49]} 18. Rxa2 {[%clk 0:01:09]}  Nxa2 {[%clk 0:01:48]}
19. Be3 {[%clk 0:01:01]}  h6 {[%clk 0:01:36]} 20. Rb1 {[%clk 0:00:49]}  Nc3 {[%clk 0:01:32]} 21. Ra1 {[%clk 0:00:47]}  Ra2 {[%clk 0:01:32]}
22. Re1 {[%clk 0:00:37]}  Nfe4 {[%clk 0:01:30]} 23. Nd3 {[%clk 0:00:32]}  Ra3 {[%clk 0:01:23]} 24. b4 {[%clk 0:00:33]}  Na2 {[%clk 0:01:18]}
25. Nc1 {[%clk 0:00:13]}  Nxc1 {[%clk 0:01:05]} 26. Rxc1 {[%clk 0:00:13]}  Rc3 {[%clk 0:00:50]} 27. Rb1 {[%clk 0:00:13]}  Rc4 {[%clk 0:00:48]}
28. b5 {[%clk 0:00:14]}  Rb4 {[%clk 0:00:46]} 29. Rc1 {[%clk 0:00:15]}  Rxb5 {[%clk 0:00:42]} 30. Ne5 {[%clk 0:00:15]}  Bxe5 {[%clk 0:00:40]}
31. dxe5 {[%clk 0:00:16]}  Nc5 {[%clk 0:00:41]} 32. f4 {[%clk 0:00:13]}  Kf8 {[%clk 0:00:41]} 33. g4 {[%clk 0:00:11]}  Ke7 {[%clk 0:00:42]}
34. g5 {[%clk 0:00:12]}  Kd7 {[%clk 0:00:40]} 35. gxh6 {[%clk 0:00:13]}  gxh6 {[%clk 0:00:41]} 36. f5 {[%clk 0:00:13]}  exf5 {[%clk 0:00:42]}
37. Bxh6 {[%clk 0:00:15]}  Ke6 {[%clk 0:00:43]} 38. Bf4 {[%clk 0:00:16]}  Nd3 {[%clk 0:00:43]} 0-1